lending/lending_fUSD_20250224
["ID","MTS","AMOUNT","RATE_DAILY","PERIOD"]
[354258257,1740370239099,-500.0,0.0001652,2]
[354258258,1740370239109,-783.77,0.0001652,2]
[354258259,1740370239118,-627.66,0.0001652,2]
[354258260,1740370239127,-500.0,0.0001652,2]
[354258261,1740370239137,-1124.15,0.0001652,2]
[354258262,1740370239147,-500.0,0.0001652,2]
[354258263,1740370239157,-500.0,0.0001652,2]
[354258264,1740370239166,-500.0,0.0001652,2]
[354258265,1740370239175,-500.0,0.0001652,2]
[354258266,1740370239185,-500.0,0.0001652,2]
[354258267,1740370239194,-500.0,0.0001652,2]
[354258268,1740370239203,-648.07,0.0001652,2]
[354258269,1740370239212,-500.0,0.0001652,2]
[354258270,1740370239221,-500.0,0.0001652,2]
[354258271,1740370239230,-742.83,0.0001652,2]
[354258272,1740370239239,-544.47,0.0001652,2]
[354258273,1740370239248,-228.93214577,0.0001652,2]
[354258274,1740370239258,-500.0,0.0001652,2]
[354258275,1740370239267,-538.11,0.0001652,2]
[354258276,1740370239276,-606.9,0.0001652,2]
[354258277,1740370239285,-761.19,0.0001652,2]
[354258278,1740370239294,-500.0,0.0001652,2]
[354258279,1740370239304,-500.0,0.0001652,2]
[354258280,1740370239313,-942.27,0.0001652,2]
[354258281,1740370239323,-500.0,0.0001652,2]
[354258282,1740370239332,-1119.02,0.0001652,2]
[354258283,1740370239341,-719.34,0.0001652,2]
[354258284,1740370239350,-334.13067392,0.0001652,2]
[354258285,1740370239359,-604.42,0.0001652,2]
[354258286,1740370239369,-500.0,0.0001652,2]
[354258287,1740370239378,-500.0,0.0001652,2]
[354258288,1740370239387,-500.0,0.0001652,2]
[354258289,1740370239397,-531.87,0.0001652,2]
[354258290,1740370239407,-985.74,0.0001652,2]
[354258291,1740370239416,-500.0,0.0001652,2]
[354258292,1740370239426,-955.59,0.0001652,2]
[354258293,1740370239435,-506.69,0.0001652,2]
[354258294,1740370239444,-367.56634373,0.0001652,2]
[354258295,1740370239454,-1299.46,0.0001652,2]
[354258296,1740370239463,-3895.08,0.0001652,2]
[354258297,1740370239473,-500.0,0.0001652,2]
[354258298,1740370239483,-500.0,0.0001652,2]
[354258299,1740370239493,-481.35409489,0.0001652,2]
[354258300,1740370239503,-529.88,0.0001652,2]
[354258301,1740370239512,-500.0,0.0001652,2]
[354258302,1740370239522,-603.32,0.0001652,2]
[354258303,1740370239532,-2279.4,0.0001652,2]
[354258304,1740370239541,-500.0,0.0001652,2]
[354258305,1740370239551,-494.39129177,0.0001652,2]
[354258306,1740370239560,-1087.58,0.0001652,2]
[354258307,1740370239570,-1355.43,0.0001652,2]
[354258308,1740370239579,-500.0,0.0001652,2]
[354258309,1740370239588,-1419.3,0.0001652,2]
[354258310,1740370239598,-4000.0,0.0001652,2]
[354258311,1740370239607,-1326.58,0.0001652,2]
[354258312,1740370239616,-990.6,0.0001652,2]
[354258313,1740370239626,-518.6,0.0001652,2]
[354258314,1740370239635,-1406.75,0.0001652,2]
[354258315,1740370239646,-500.0,0.0001652,2]
[354258316,1740370239655,-500.0,0.0001652,2]
[354258317,1740370239665,-1927.97,0.0001652,2]
[354258318,1740370239674,-1147.32,0.0001652,2]
[354258319,1740370239684,-1418.58,0.0001652,2]
[354258320,1740370239694,-500.0,0.0001652,2]
[354258321,1740370239703,-881.04,0.0001652,2]
[354258322,1740370239712,-500.0,0.0001652,2]
[354258323,1740370239726,-500.0,0.0001652,2]
[354258324,1740370239736,-1955.15,0.0001652,2]
[354258325,1740370239744,-2363.12,0.0001652,2]
[354258326,1740370239754,-2242.46,0.0001652,2]
[354258327,1740370239763,-500.0,0.0001652,2]
[354258328,1740370239772,-500.0,0.0001652,2]
[354258329,1740370239782,-500.0,0.0001652,2]
[354258330,1740370239791,-1062.87,0.0001652,2]
[354258331,1740370239800,-618.22,0.0001652,2]
[354258333,1740370239809,-500.0,0.0001652,2]
[354258334,1740370239819,-2156.86,0.0001652,2]
[354258335,1740370239828,-1442.62,0.0001652,2]
[354258336,1740370239838,-2318.74,0.0001652,2]
[354258337,1740370239847,-500.0,0.0001652,2]
[354258338,1740370239856,-834.42,0.0001652,2]
[354258339,1740370239865,-586.92,0.0001652,2]
[354258340,1740370239875,-2002.34,0.0001652,2]
[354258341,1740370239884,-693.2,0.0001652,2]
[354258342,1740370239893,-1463.93,0.0001652,2]
[354258343,1740370239903,-1507.75,0.0001652,2]
[354258344,1740370239912,-1508.25,0.0001652,2]
[354258345,1740370239921,-590.46,0.0001652,2]
[354258347,1740370239930,-1055.17,0.0001652,2]
[354258349,1740370239940,-731.62,0.0001652,2]
[354258351,1740370239949,-1951.74,0.0001652,2]
[354258352,1740370239958,-1780.85,0.0001652,2]
[354258354,1740370239968,-500.0,0.0001652,2]
[354258356,1740370239977,-500.0,0.0001652,2]
[354258358,1740370239987,-11267.85,0.0001652,2]
[354258359,1740370239996,-582.35,0.0001652,2]
[354258360,1740370240005,-822.47,0.0001652,2]
[354258361,1740370240014,-500.0,0.0001652,2]
[354258362,1740370240024,-773.02,0.0001652,2]
[354258363,1740370240033,-2054.61,0.0001652,2]
[354258365,1740370240042,-1628.62,0.0001652,2]
[354258367,1740370240052,-599.87,0.0001652,2]
[354258368,1740370240064,-3117.91,0.0001652,2]
[354258369,1740370240073,-500.0,0.0001652,2]
[354258371,1740370240082,-4818.73,0.0001652,2]
[354258372,1740370240091,-500.0,0.0001652,2]
[354258374,1740370240101,-655.46,0.0001652,2]
[354258376,1740370240110,-5552.05,0.0001652,2]
[354258378,1740370240120,-500.0,0.0001652,2]
[354258380,1740370240129,-1407.53,0.0001652,2]
[354258382,1740370240139,-1303.65,0.0001652,2]
[354258384,1740370240149,-1935.81,0.0001652,2]
[354258386,1740370240158,-2523.47,0.0001652,2]
[354258388,1740370240167,-1791.53,0.0001652,2]
[354258390,1740370240176,-500.0,0.0001652,2]
[354258392,1740370240186,-1194.26,0.0001652,2]
[354258394,1740370240197,-3040.22,0.0001652,2]
[354258396,1740370240206,-555.36,0.0001652,2]
[354258398,1740370240216,-500.0,0.0001652,2]
[354258400,1740370240226,-2447.95,0.0001652,2]
[354258402,1740370240236,-778.73,0.0001652,2]
[354258404,1740370240246,-2805.33,0.0001652,2]
[354258406,1740370240255,-1963.82,0.0001652,2]
[354258408,1740370240264,-1830.49,0.0001652,2]
[354258410,1740370240274,-500.0,0.0001652,2]
[354258412,1740370240283,-500.0,0.0001652,2]
[354258414,1740370240292,-1465.42,0.0001652,2]
[354258416,1740370240302,-3178.28,0.0001652,2]
[354258418,1740370240311,-3050.1,0.0001652,2]
[354258420,1740370240322,-1928.5,0.0001652,2]
[354258422,1740370240332,-1941.07,0.0001652,2]
[354258424,1740370240341,-500.0,0.0001652,2]
[354258426,1740370240350,-748.66,0.0001652,2]
[354258428,1740370240359,-1478.69,0.0001652,2]
[354258430,1740370240369,-2173.14,0.0001652,2]
[354258432,1740370240380,-1220.36,0.0001652,2]
[354258434,1740370240389,-3736.47,0.0001652,2]
[354258436,1740370240399,-1666.17,0.0001652,2]
[354258438,1740370240408,-2977.97,0.0001652,2]
[354258440,1740370240417,-1017.67,0.0001652,2]
[354258442,1740370240427,-1640.63,0.0001652,2]
[354258443,1740370240436,-6338.02,0.0001652,2]
[354258445,1740370240445,-2867.15,0.0001652,2]
[354258447,1740370240455,-500.06773701,0.0001652,2]
[354258449,1740370240464,-841.89,0.0001652,2]
[354258451,1740370240473,-500.0,0.0001652,2]
[354258453,1740370240483,-2143.08,0.0001652,2]
[354258456,1740370240492,-500.0,0.0001652,2]
[354258457,1740370240502,-2766.52,0.0001652,2]
[354258459,1740370240511,-931.52,0.0001652,2]
[354258461,1740370240521,-500.0,0.0001652,2]
[354258463,1740370240530,-500.0,0.0001652,2]
[354258464,1740370240539,-549.15,0.0001652,2]
[354258465,1740370240548,-500.0,0.0001652,2]
[354258466,1740370240557,-2546.08,0.0001652,2]
[354258467,1740370240566,-500.0,0.0001652,2]
[354258468,1740370240575,-1331.74,0.0001652,2]
[354258469,1740370240584,-1142.48,0.0001652,2]
[354258470,1740370240592,-1700.65,0.0001652,2]
[354258471,1740370240602,-500.0,0.0001652,2]
[354258472,1740370240611,-180.44869856,0.0001652,2]
[354258473,1740370240620,-1357.58,0.0001652,2]
[354258474,1740370240629,-3135.47,0.0001652,2]
[354258475,1740370240638,-500.0,0.0001652,2]
[354258476,1740370240648,-2422.92,0.0001652,2]
[354258477,1740370240657,-500.0,0.0001652,2]
[354258479,1740370240666,-1200.83,0.0001652,2]
[354258481,1740370240675,-1256.88,0.0001652,2]
[354258483,1740370240684,-985.51,0.0001652,2]
[354258485,1740370240693,-500.0,0.0001652,2]
[354258487,1740370240703,-2703.34,0.0001652,2]
[354258488,1740370240720,-1243.49,0.0001652,2]
[354258489,1740370240729,-500.0,0.0001652,2]
[354258490,1740370240738,-2863.31,0.0001652,2]
[354258491,1740370240747,-2741.9,0.0001652,2]
[354258492,1740370240755,-3475.77,0.0001652,2]
[354258493,1740370240764,-807.12,0.0001652,2]
[354258494,1740370240773,-2094.5,0.0001652,2]
[354258495,1740370240782,-1429.41,0.0001652,2]
[354258496,1740370240791,-656.42,0.0001652,2]
[354258497,1740370240800,-500.0,0.0001652,2]
[354258498,1740370240809,-1109.03,0.0001652,2]
[354258500,1740370240818,-3155.01,0.0001652,2]
[354258502,1740370240828,-1836.26,0.0001652,2]
[354258504,1740370240837,-2861.82,0.0001652,2]
[354258506,1740370240847,-500.0,0.0001652,2]
[354258508,1740370240856,-1059.77,0.0001652,2]
[354258510,1740370240865,-1222.45,0.0001652,2]
[354258512,1740370240875,-1881.25,0.0001652,2]
[354258514,1740370240884,-2516.19,0.0001652,2]
[354258516,1740370240894,-1026.41,0.0001652,2]
[354258518,1740370240905,-500.0,0.0001652,2]
[354258520,1740370240915,-1040.13,0.0001652,2]
[354258522,1740370240925,-1687.26,0.0001652,2]
[354258524,1740370240934,-500.0,0.0001652,2]
[354258526,1740370240944,-990.37,0.0001652,2]
[354258528,1740370240954,-1952.17,0.0001652,2]
[354258530,1740370240964,-3199.22,0.0001652,2]
[354258532,1740370240974,-1386.4,0.0001652,2]
[354258534,1740370240983,-500.0,0.0001652,2]
[354258536,1740370240993,-500.0,0.0001652,2]
[354258538,1740370241003,-1126.95,0.0001652,2]
[354258540,1740370241015,-2480.34,0.0001652,2]
[354258543,1740370241024,-2631.9,0.0001652,2]
[354258544,1740370241034,-4039.48,0.0001652,2]
[354258546,1740370241043,-572.26,0.0001652,2]
[354258548,1740370241053,-3534.61,0.0001652,2]
[354258550,1740370241065,-500.0,0.0001652,2]
[354258552,1740370241074,-3523.63,0.0001652,2]
[354258554,1740370241083,-1787.16,0.0001652,2]
[354258556,1740370241092,-1888.6,0.0001652,2]
[354258558,1740370241101,-9640.15,0.0001652,2]
[354258560,1740370241110,-500.0,0.0001652,2]
[354258562,1740370241119,-2409.95,0.0001652,2]
[354258564,1740370241128,-2352.02,0.0001652,2]
[354258566,1740370241138,-1485.16,0.0001652,2]
[354258568,1740370241147,-500.0,0.0001652,2]
[354258570,1740370241155,-811.15,0.0001652,2]
[354258572,1740370241164,-500.0,0.0001652,2]
[354258574,1740370241174,-583.37,0.0001652,2]
[354258576,1740370241183,-2357.84,0.0001652,2]
[354258578,1740370241192,-739.0,0.0001652,2]
[354258580,1740370241201,-709.38,0.0001652,2]
[354258582,1740370241210,-4243.19,0.0001652,2]
[354258584,1740370241220,-1367.15,0.0001652,2]
[354258586,1740370241230,-3442.95,0.0001652,2]
[354258588,1740370241239,-2307.0,0.0001652,2]
[354258590,1740370241247,-853.06,0.0001652,2]
[354258592,1740370241256,-500.0,0.0001652,2]
[354258594,1740370241265,-1003.06,0.0001652,2]
[354258596,1740370241274,-391.79564931,0.00016528,2]
[354258598,1740370241286,-389.39,0.00016542,2]
[354258600,1740370241295,-391.79564931,0.00016546,2]
[354258602,1740370241304,-2000.0,0.00016551,2]
[354258604,1740370241314,-500.0,0.00016551,2]
[354258606,1740370241323,-200.0,0.00016551,2]
[354258608,1740370241332,-239.87115715,0.00016557,2]
[354258610,1740370241341,-391.79564931,0.00016563,2]
[354258612,1740370241350,-1009.6893075,0.00016567,5]
[354258614,1740370241359,-1067775.01869213,0.00016567,5]
[354258616,1740370241368,-33332.23763666,0.00016567,2]
[354258618,1740370241377,-391.79564931,0.0001658,2]
[354258620,1740370241386,-800.80760448,0.00016584,2]
[354258622,1740370241396,-391.79564931,0.00016598,2]
[354258624,1740370241406,-2194.98366441,0.00016598,7]
[354258626,1740370241415,-500.0,0.00016598,2]
[354258628,1740370241424,-700.0,0.000166,6]
[354258630,1740370241433,-413.0,0.000166,2]
[354258632,1740370241442,-500.0,0.00016601,2]
[354258634,1740370241451,-500.0,0.00016601,2]
[354258636,1740370241462,-708.07,0.00016601,2]
[354258638,1740370241473,-999.0,0.00016601,2]
[354258641,1740370241486,-500.0,0.00016601,2]
[354258643,1740370241498,-500.0,0.00016601,2]
[354258645,1740370241510,-500.0,0.00016601,2]
[354258647,1740370241521,-500.0,0.00016601,2]
[354258650,1740370241531,-500.0,0.00016601,2]
[354258652,1740370241543,-500.0,0.00016601,2]
[354258654,1740370241555,-300.0,0.00016601,2]
[354258656,1740370241567,-1420.0,0.00016601,2]
[354258659,1740370241578,-538.99395,0.00016602,2]
[354258661,1740370241589,-586.522083,0.00016602,2]
[354258663,1740370241601,-654.56,0.00016602,2]
[354258665,1740370241613,-561.51,0.00016602,2]
[354258668,1740370241625,-500.0,0.00016602,2]
[354258670,1740370241637,-500.0,0.00016602,2]
[354258672,1740370241649,-500.0,0.00016602,2]
[354258674,1740370241659,-500.0,0.00016602,2]
[354258677,1740370241670,-632.37,0.00016602,2]
[354258679,1740370241680,-500.0,0.00016602,2]
[354258681,1740370241689,-500.0,0.00016602,2]
[354258683,1740370241700,-500.0,0.00016602,2]
[354258685,1740370241712,-4950.324,0.00016602,2]
[354258687,1740370241723,-175.309,0.00016602,2]
[354258690,1740370241735,-500.0,0.00016602,2]
[354258692,1740370241747,-500.0,0.00016602,2]
[354258694,1740370241759,-500.0,0.00016602,2]
[354258697,1740370241770,-536.73,0.00016602,2]
[354258699,1740370241782,-500.0,0.00016602,2]
[354258701,1740370241793,-500.0,0.00016602,2]
[354258703,1740370241805,-500.0,0.00016602,2]
[354258706,1740370241816,-565.79,0.00016602,2]
[354258708,1740370241827,-500.0,0.00016602,2]
[354258710,1740370241840,-585.43,0.00016602,2]
[354258712,1740370241851,-1958.12,0.00016602,2]
[354258715,1740370241862,-674.94,0.00016602,2]
[354258717,1740370241873,-500.0,0.00016602,2]
[354258719,1740370241883,-500.0,0.00016602,2]
[354258721,1740370241895,-500.0,0.00016602,2]
[354258724,1740370241905,-745.66,0.00016602,2]
[354258726,1740370241916,-500.0,0.00016602,2]
[354258728,1740370241927,-199.51688514,0.00016602,2]
[354258730,1740370241938,-1348.94,0.00016602,2]
[354258733,1740370241950,-699.72,0.00016602,2]
[354258735,1740370241961,-1547.19,0.00016602,2]
[354258737,1740370241971,-500.0,0.00016602,2]
[354258739,1740370241983,-1904.22,0.00016602,2]
[354258741,1740370241993,-526.35,0.00016602,2]
[354258743,1740370242003,-500.0,0.00016602,2]
[354258745,1740370242013,-1002.13,0.00016602,2]
[354258748,1740370242024,-500.0,0.00016602,2]
[354258750,1740370242035,-1134.15,0.00016602,2]
[354258752,1740370242047,-500.0,0.00016602,2]
[354258755,1740370242061,-500.0,0.00016602,2]
[354258757,1740370242072,-571.09,0.00016602,2]
[354258759,1740370242081,-500.0,0.00016602,2]
[354258761,1740370242091,-553.86,0.00016602,2]
[354258763,1740370242102,-1052.61,0.00016602,2]
[354258765,1740370242111,-850.74,0.00016602,2]
[354258767,1740370242122,-1131.97,0.00016602,2]
[354258769,1740370242134,-500.0,0.00016602,2]
[354258772,1740370242147,-899.17,0.00016602,2]
[354258774,1740370242158,-500.0,0.00016602,2]
[354258776,1740370242168,-787.33,0.00016602,2]
[354258778,1740370242178,-500.0,0.00016602,2]
[354258780,1740370242188,-500.0,0.00016602,2]
[354258782,1740370242199,-500.0,0.00016602,2]
[354258785,1740370242210,-1272.39,0.00016602,2]
[354258787,1740370242220,-769.41,0.00016602,2]
[354258789,1740370242231,-891.59,0.00016602,2]
[354258791,1740370242242,-500.0,0.00016602,2]
[354258793,1740370242252,-746.3,0.00016602,2]
[354258796,1740370242264,-512.65,0.00016602,2]
[354258798,1740370242274,-1139.12,0.00016602,2]
[354258800,1740370242285,-629.92,0.00016602,2]
[354258802,1740370242295,-1166.53,0.00016602,2]
[354258804,1740370242306,-500.0,0.00016602,2]
[354258806,1740370242316,-500.0,0.00016602,2]
[354258809,1740370242327,-500.0,0.00016602,2]
[354258811,1740370242338,-500.0,0.00016602,2]
[354258813,1740370242348,-654.42,0.00016602,2]
[354258815,1740370242358,-500.0,0.00016602,2]
[354258817,1740370242369,-620.82,0.00016602,2]
[354258819,1740370242379,-500.0,0.00016602,2]
[354258821,1740370242389,-682.77,0.00016602,2]
[354258824,1740370242399,-589.28,0.00016602,2]
[354258826,1740370242410,-500.0,0.00016602,2]
[354258828,1740370242420,-677.74,0.00016602,2]
[354258829,1740370242430,-500.0,0.00016602,2]
[354258830,1740370242442,-500.0,0.00016602,2]
[354258831,1740370242452,-500.0,0.00016602,2]
[354258832,1740370242463,-500.0,0.00016602,2]
[354258833,1740370242474,-500.0,0.00016602,2]
[354258834,1740370242484,-500.0,0.00016602,2]
[354258835,1740370242496,-500.0,0.00016602,2]
[354258836,1740370242506,-515.59,0.00016602,2]
[354258837,1740370242517,-500.0,0.00016602,2]
[354258838,1740370242527,-500.0,0.00016602,2]
[354258839,1740370242538,-545.6723261,0.00016602,2]
[354258840,1740370242549,-973.07,0.00016602,2]
[354258841,1740370242559,-500.0,0.00016602,2]
[354258842,1740370242570,-500.0,0.00016602,2]
[354258843,1740370242580,-531.07,0.00016602,2]
[354258844,1740370242590,-614.59,0.00016602,2]
[354258845,1740370242600,-673.96,0.00016602,2]
[354258846,1740370242611,-375.0857342,0.00016602,2]
[354258847,1740370242622,-545.54,0.00016602,2]
[354258848,1740370242632,-500.0,0.00016602,2]
[354258849,1740370242643,-500.0,0.00016602,2]
[354258850,1740370242653,-500.0,0.00016602,2]
[354258851,1740370242664,-546.89,0.00016602,2]
[354258852,1740370242674,-500.0,0.00016602,2]
[354258853,1740370242684,-583.18,0.00016602,2]
[354258854,1740370242695,-500.0,0.00016602,2]
[354258855,1740370242706,-882.41,0.00016602,2]
[354258856,1740370242716,-500.0,0.00016602,2]
[354258857,1740370242729,-502.84,0.00016602,2]
[354258858,1740370242741,-576.49,0.00016602,2]
[354258859,1740370242751,-500.0,0.00016602,2]
[354258860,1740370242761,-500.0,0.00016602,2]
[354258861,1740370242772,-500.0,0.00016602,2]
[354258862,1740370242782,-500.0,0.00016602,2]
[354258863,1740370242793,-500.0,0.00016602,2]
[354258864,1740370242803,-768.2,0.00016602,2]
[354258865,1740370242813,-500.0,0.00016602,2]
[354258866,1740370242823,-556.67,0.00016602,2]
[354258867,1740370242834,-500.0,0.00016602,2]
[354258868,1740370242845,-500.0,0.00016602,2]
[354258869,1740370242857,-406.52200168,0.00016602,2]
[354258870,1740370242867,-781.2,0.00016602,2]
[354258871,1740370242878,-280.7121582,0.00016602,2]
[354258872,1740370242888,-992.75,0.00016602,2]
[354258874,1740370242899,-845.58,0.00016602,2]
[354258876,1740370242909,-822.7,0.00016602,2]
[354258878,1740370242919,-519.67,0.00016602,2]
[354258880,1740370242929,-506.17,0.00016602,2]
[354258882,1740370242940,-1117.0,0.00016602,2]
[354258885,1740370242950,-500.0,0.00016602,2]
[354258888,1740370242960,-611.16,0.00016602,2]
[354258891,1740370242971,-500.0,0.00016602,2]
[354258892,1740370242981,-500.0,0.00016602,2]
[354258895,1740370242991,-500.0,0.00016602,2]
[354258897,1740370243001,-500.0,0.00016602,2]
[354258901,1740370243012,-1226.43,0.00016602,2]
[354258905,1740370243022,-887.69,0.00016602,2]
[354258911,1740370243032,-890.12,0.00016602,2]
[354258913,1740370243043,-500.0,0.00016602,2]
[354258914,1740370243054,-500.0,0.00016602,2]
[354258916,1740370243067,-500.0,0.00016602,2]
[354258919,1740370243077,-690.76,0.00016602,2]
[354258920,1740370243087,-689.31,0.00016602,2]
[354258921,1740370243098,-595.43,0.00016602,2]
[354258922,1740370243109,-500.0,0.00016602,2]
[354258923,1740370243119,-500.0,0.00016602,2]
[354258924,1740370243130,-500.0,0.00016602,2]
[354258925,1740370243141,-512.62844169,0.00016602,2]
[354258927,1740370243152,-929.89,0.00016602,2]
[354258929,1740370243163,-500.0,0.00016602,2]
[354258931,1740370243173,-500.0,0.00016602,2]
[354258932,1740370243184,-688.58,0.00016602,2]
[354258934,1740370243195,-500.0,0.00016602,2]
[354258936,1740370243205,-500.0,0.00016602,2]
[354258938,1740370243216,-478.68304229,0.00016602,2]
[354258940,1740370243226,-518.85,0.00016602,2]
[354258942,1740370243237,-500.0,0.00016602,2]
[354258943,1740370243247,-500.0,0.00016602,2]
[354258944,1740370243257,-783.77,0.00016602,2]
[354258945,1740370243268,-627.66,0.00016602,2]
[354258946,1740370243278,-500.0,0.00016602,2]
[354258947,1740370243288,-1124.15,0.00016602,2]
[354258948,1740370243299,-500.0,0.00016602,2]
[354258949,1740370243310,-500.0,0.00016602,2]
[354258950,1740370243320,-500.0,0.00016602,2]
[354258951,1740370243330,-500.0,0.00016602,2]
[354258952,1740370243341,-648.07,0.00016602,2]
[354258953,1740370243351,-500.0,0.00016602,2]
[354258954,1740370243361,-412.61849887,0.00016602,2]
[354258955,1740370243372,-742.83,0.00016602,2]
[354258956,1740370243382,-544.47,0.00016602,2]
[354258957,1740370243392,-500.0,0.00016602,2]
[354258958,1740370243404,-538.11,0.00016602,2]
[354258959,1740370243414,-606.9,0.00016602,2]
[354258960,1740370243424,-761.19,0.00016602,2]
[354258961,1740370243435,-500.0,0.00016602,2]
[354258962,1740370243445,-942.27,0.00016602,2]
[354258963,1740370243455,-500.0,0.00016602,2]
[354258964,1740370243465,-1119.02,0.00016602,2]
[354258965,1740370243476,-719.34,0.00016602,2]
[354258966,1740370243486,-604.42,0.00016602,2]
[354258967,1740370243496,-152.66078289,0.00016602,2]
[354258968,1740370243506,-500.0,0.00016602,2]
[354258969,1740370243516,-500.0,0.00016602,2]
[354258970,1740370243526,-531.87,0.00016602,2]
[354258971,1740370243536,-985.74,0.00016602,2]
[354258973,1740370243547,-955.59,0.00016602,2]
[354258975,1740370243557,-506.69,0.00016602,2]
[354258976,1740370243568,-1299.46,0.00016602,2]
[354258977,1740370243578,-3895.08,0.00016602,2]
[354258978,1740370243589,-500.0,0.00016602,2]
[354258979,1740370243599,-500.0,0.00016602,2]
[354258980,1740370243610,-529.88,0.00016602,2]
[354258981,1740370243620,-500.0,0.00016602,2]
[354258982,1740370243630,-603.32,0.00016602,2]
[354258983,1740370243640,-2279.4,0.00016602,2]
[354258984,1740370243650,-500.0,0.00016602,2]
[354258985,1740370243660,-1087.58,0.00016602,2]
[354258986,1740370243671,-1355.43,0.00016602,2]
[354258987,1740370243682,-500.0,0.00016602,2]
[354258988,1740370243692,-1419.3,0.00016602,2]
[354258989,1740370243702,-1326.58,0.00016602,2]
[354258990,1740370243713,-990.6,0.00016602,2]
[354258991,1740370243723,-518.6,0.00016602,2]
[354258992,1740370243733,-1406.75,0.00016602,2]
[354258993,1740370243743,-1927.97,0.00016602,2]
[354258994,1740370243754,-1147.32,0.00016602,2]
[354258995,1740370243764,-1418.58,0.00016602,2]
[354258996,1740370243774,-500.0,0.00016602,2]
[354258997,1740370243784,-881.04,0.00016602,2]
[354258998,1740370243795,-500.0,0.00016602,2]
[354258999,1740370243806,-500.0,0.00016602,2]
[354259000,1740370243816,-153.38860864,0.00016602,2]
[354259001,1740370244568,-1801.76139136,0.00016602,2]
[354259002,1740370244579,-2363.12,0.00016602,2]
[354259003,1740370244588,-2242.46,0.00016602,2]
[354259004,1740370244597,-59.0244659,0.00016602,2]
[354259005,1740370244617,-440.9755341,0.00016602,2]
[354259006,1740370244626,-500.0,0.00016602,2]
[354259007,1740370244635,-500.0,0.00016602,2]
[354259008,1740370244644,-1062.87,0.00016602,2]
[354259009,1740370244654,-618.22,0.00016602,2]
[354259010,1740370244662,-500.0,0.00016602,2]
[354259011,1740370244671,-1473.9344659,0.00016602,2]
[354259012,1740370244696,-639.41413867,0.00016602,2]
[354259013,1740370245665,-356.91908144,0.00016338,2]
[354259014,1740370245675,-85.31295969,0.00016438,2]
[354259015,1740370245692,-414.68704031,0.00016438,2]
[354259016,1740370245701,-539.35,0.00016438,2]
[354259017,1740370245710,-500.0,0.00016438,2]
[354259018,1740370245719,-500.0,0.0001652,2]
[354259019,1740370245729,-500.0,0.0001652,2]
[354259020,1740370245738,-43.51139543,0.00016602,2]
[354259021,1740370245747,-216.75156428,0.00016602,2]
[354259036,1740370246025,-1225.86843572,0.00016602,2]
[354259039,1740370246034,-500.0,0.00016602,2]
[354259040,1740370246043,-834.42,0.00016602,2]
[354259041,1740370246053,-2002.34,0.00016602,2]
[354259042,1740370246064,-1463.93,0.00016602,2]
[354259043,1740370246074,-693.2,0.00016602,2]
[354259044,1740370246083,-1507.75,0.00016602,2]
[354259045,1740370246093,-590.46,0.00016602,2]